bitfinex/quotes_ETHUSD_20260203
["timestamp","ask_amount","ask_price","bid_price","bid_amount"]
[1770098848490,12.5668638,2308.4,2307.2,0.02587992]
[1770098848774,12.5668638,2308.4,2307.3,1.08351753]
[1770098848775,15.781366,2308.4,2307.3,1.08351753]
[1770098849372,0.01083099,2308.3,2307.3,1.08351753]
[1770098849970,0.01149967,2308.2,2307.3,1.08351753]
[1770098850171,0.01083099,2308.1,2307.3,1.08351753]
[1770098850361,0.01149967,2308.0,2307.3,1.08351753]
[1770098850558,0.01149967,2308.0,2306.9,0.02587992]
[1770098850559,12.57769479,2307.9,2306.7,4.946609]
[1770098850778,12.57836347,2307.8,2306.8,1.08371636]
[1770098850973,0.06245857,2307.2,2306.8,1.08371636]
[1770098851280,12.5668638,2307.8,2306.8,1.08371636]
[1770098851485,7.66490228,2307.6,2306.8,2.12024985]
[1770098851984,7.66490228,2307.6,2306.8,2.14612977]
[1770098853300,13.64992224,2308.3,2306.8,2.12024985]
[1770098853503,12.5668638,2308.1,2306.8,2.12024985]
[1770098854301,12.5668638,2308.1,2306.6,4.33533223]
[1770098854302,13.67917634,2307.9,2306.6,4.33533223]
[1770098854483,13.67917634,2307.9,2306.8,1.08374744]
[1770098854484,12.5668638,2307.7,2306.8,1.08374744]
[1770098854671,0.8807344,2307.6,2306.8,1.08374744]
[1770098854877,1.18298027,2306.6,2301.6,1.3034324]
[1770098855074,10.84140688,2303.5,2301.3,2.0419908]
[1770098855278,0.00328,2302.4,2301.3,1.92126169]
[1770098855578,1.92126169,2301.3,2300.0,0.09020693]
[1770098855809,0.06096597,2301.3,2300.1,4.34748252]
[1770098855974,0.06096597,2301.3,2300.0,0.09020693]
[1770098855975,8.54702236,2301.2,2300.0,0.09020693]
[1770098856179,9.90304945,2301.2,2300.0,1.17716119]
[1770098856409,7.63902236,2301.2,2300.0,12.1954249]
[1770098856623,0.06096597,2301.3,2300.0,12.1954249]
[1770098857070,1e-08,2301.3,2300.3,0.01304008]
[1770098857804,0.11544008,2302.5,2300.4,11.03130379]
[1770098857979,7.65206244,2302.4,2300.5,1.10443439]
[1770098858181,7.65206244,2302.4,2300.4,11.03130379]
[1770098858182,0.01304008,2302.2,2300.0,1.17716119]
[1770098858378,7.63902236,2302.1,2300.2,0.01304008]
[1770098858718,7.63902236,2302.3,2300.5,0.01304008]
[1770098859010,1.78289571,2302.2,2300.6,1.08667304]
[1770098859210,0.87489571,2302.1,2300.6,1.08667304]
[1770098859411,1.19845513,2302.0,2300.0,0.09020693]
[1770098859708,0.1024,2301.8,2300.5,1.08671978]
[1770098859884,0.87489571,2301.7,2300.5,1.08669863]
[1770098860085,8.51391807,2301.7,2300.5,1.08669863]
[1770098860312,1.78362053,2301.6,2300.4,1.08674204]
[1770098860484,1.81688482,2301.5,2300.3,1.08677752]
[1770098860681,7.63902236,2301.5,2300.5,1.08671745]
[1770098860995,7.63902236,2301.5,2300.4,0.01304008]
[1770098861199,0.909,2301.8,2300.1,4.31674855]
[1770098861511,0.87614527,2301.7,2300.1,4.31674855]
[1770098861676,1.09605513,2302.0,2300.1,4.30370847]
[1770098861677,0.87614527,2301.6,2300.1,4.30370847]
[1770098861877,2.45565231,2301.5,2300.2,0.48712547]
[1770098862285,0.87804693,2301.4,2300.2,0.48712547]
[1770098862489,3.36465231,2301.5,2300.2,0.48712547]
[1770098862684,0.87828539,2301.4,2300.2,0.48712547]
[1770098862892,2.45565231,2301.5,2300.3,1.08681476]
[1770098863107,0.87818312,2301.4,2300.4,0.59211993]
[1770098863313,0.88102781,2301.3,2300.4,0.59211993]
[1770098863535,0.88102781,2301.2,2300.4,0.59211993]
[1770098863704,3.55350905,2301.5,2300.4,0.59211993]
[1770098863894,4.42102409,2301.4,2300.4,0.59211993]
[1770098864096,3.32316735,2301.3,2300.4,0.59211993]
[1770098864290,0.88435949,2301.2,2300.4,0.59311993]
[1770098864495,0.88435949,2301.1,2300.4,0.59311993]
[1770098864695,0.88435949,2301.0,2300.4,0.59311993]
[1770098864922,0.88434234,2300.9,2300.5,1.08672027]
[1770098865118,1.46140684,2301.4,2300.5,1.08672027]
[1770098865326,2.18721944,2301.5,2300.5,2.06924563]
[1770098865623,2.7917288,2301.6,2300.5,2.06924563]
[1770098865928,2.7917288,2301.6,2300.5,2.01437626]
[1770098866306,0.60450936,2301.6,2300.5,2.02741634]
[1770098866623,0.60450936,2301.6,2300.5,2.01437626]
[1770098866805,0.60450936,2301.6,2300.6,0.69543773]
[1770098867000,0.34436731,2301.6,2300.7,12.10488951]
[1770098867191,0.30383154,2302.8,2300.8,0.01304008]
[1770098867395,0.30383154,2302.8,2301.1,11.01826371]
[1770098868130,0.30083154,2302.8,2301.1,11.01826371]
[1770098868329,0.30083154,2302.8,2301.2,1.10313038]
[1770098868518,0.30083154,2302.8,2301.2,12.13443417]
[1770098868718,0.30083154,2302.8,2301.2,12.12139409]
[1770098868922,0.30083154,2302.8,2301.3,1.0863425]
[1770098869731,0.30083154,2302.8,2301.3,12.10460621]
[1770098869937,0.30083154,2302.8,2301.4,12.77487838]
[1770098870139,11.14223842,2302.8,2301.3,1.0863425]
[1770098870326,0.91,2302.7,2301.3,1.0863425]
[1770098870512,0.01304008,2302.7,2301.3,1.0863425]
[1770098870717,0.91,2302.7,2301.3,1.0863425]
[1770098870939,2.22533331,2302.7,2301.5,1.08624809]
[1770098871144,2.22533331,2302.7,2301.4,0.49257981]
[1770098871145,1.13964685,2302.7,2301.4,1.08628157]
[1770098871340,0.22964685,2302.7,2301.4,1.08628157]
[1770098871511,0.24268693,2302.7,2301.4,1.08628157]
[1770098871708,0.22964685,2302.7,2301.4,1.08628157]
[1770098872038,0.30083154,2302.8,2301.5,0.54316084]
[1770098872218,0.30083154,2302.8,2301.5,13.26871508]
[1770098872911,0.30083154,2302.8,2301.6,1.0862009]
[1770098873108,1e-08,2302.8,2301.6,13.81175514]
[1770098874437,1e-08,2302.8,2301.6,13.82479522]
[1770098874649,1e-08,2302.8,2301.8,12.72555424]
[1770098874946,1e-08,2302.8,2302.0,12.72555424]
[1770098875147,0.86648405,2304.1,2302.1,13.81151922]
[1770098875340,0.91,2304.1,2302.1,13.76214405]
[1770098875537,0.01304008,2304.0,2302.2,1.8106004]
[1770098875734,0.92304008,2304.1,2302.2,1.76121796]
[1770098876245,0.91,2304.1,2302.2,14.4867722]
[1770098876415,1.09805004,2304.2,2302.2,14.4867722]
[1770098876616,1.82286217,2304.1,2302.3,1.5491362]
[1770098876851,1.82286217,2304.1,2302.3,14.27469044]
[1770098877065,0.01304008,2304.0,2302.4,1.08582348]
[1770098877345,0.88802049,2303.9,2302.4,1.08582348]
[1770098877557,5.86333301,2304.1,2302.4,13.81137772]
[1770098877558,0.88802049,2303.8,2302.4,13.81137772]
[1770098877730,0.88802049,2303.7,2302.5,14.69723903]
[1770098877936,0.88802049,2303.6,2302.5,14.69723903]
[1770098878132,0.01304008,2304.2,2302.5,14.69723903]
[1770098878337,2.95543937,2304.1,2302.5,14.69723903]
[1770098878543,2.95543937,2304.2,2302.5,14.69723903]
[1770098878760,0.79892139,2304.2,2302.6,13.44296288]
[1770098879116,3.26309944,2304.3,2302.6,13.44296288]
[1770098879349,2.95543937,2304.1,2302.7,1.08568202]
[1770098879654,2.95543937,2304.2,2302.7,1.08568202]
[1770098880028,3.26309944,2304.3,2302.7,13.81123626]
[1770098880223,2.95543937,2304.1,2302.7,13.81123626]
[1770098880429,2.95543937,2304.1,2302.8,1.87257998]
[1770098880629,2.95543937,2304.1,2302.7,1.08568202]
[1770098880832,2.95543937,2303.7,2302.7,1.08568202]
[1770098881038,2.95543937,2303.8,2302.7,1.08568202]
[1770098881246,2.95543937,2303.3,2302.0,0.91]
[1770098881448,2.95543937,2303.4,2302.5,1.08572917]
[1770098881645,2.95543937,2303.8,2302.6,0.54286459]
[1770098881855,2.95543937,2303.9,2302.6,0.54286459]
[1770098882171,2.95543937,2303.8,2302.6,0.54286459]
[1770098882383,2.95543937,2303.4,2302.6,0.54286459]
[1770098882543,2.95543937,2303.6,2302.6,0.54286459]
[1770098882983,2.95543937,2303.7,2302.6,0.54286459]
[1770098883282,2.95543937,2303.3,2302.7,1.08568202]
[1770098883490,2.95543937,2303.3,2302.3,12.72555424]
[1770098883491,2.95543937,2303.2,2301.9,4.34422625]
[1770098883640,2.95543937,2303.1,2302.6,1.08572558]
[1770098883838,2.95543937,2303.2,2302.6,1.08572558]
[1770098884061,2.95543937,2303.1,2302.6,1.08572558]
[1770098884267,2.95109937,2302.7,2302.4,4.3429167]
[1770098884468,2.95109937,2302.7,2302.6,1.08572558]
[1770098884644,3.64123021,2303.2,2302.6,1.08572558]
[1770098885268,3.64123021,2303.3,2302.1,13.81151922]
[1770098885566,3.4231877,2303.3,2302.1,13.81151922]
[1770098885870,7.3020747,2304.0,2302.1,13.81151922]
[1770098885871,5.09982178,2303.9,2302.4,0.01304008]
[1770098886165,18.66815239,2303.9,2302.2,1.77239773]
[1770098886887,13.56833061,2303.9,2302.2,1.77239773]
[1770098887183,2.26986953,2303.0,2302.2,1.77239773]
[1770098887384,2.26986953,2303.0,2302.3,1.37170692]
[1770098887892,2.26986953,2303.1,2302.3,1.37170692]
[1770098888056,1.0852485,2303.7,2302.3,1.37170692]
[1770098888780,1.08519674,2303.8,2302.3,1.37170692]
[1770098889080,4.34012344,2304.1,2302.4,13.48865705]
[1770098889780,1.08502235,2304.2,2302.5,1.08577633]
[1770098890282,0.90788611,2304.1,2302.5,1.08577633]
[1770098890448,0.90788611,2304.0,2302.5,13.81133057]
[1770098890783,0.90788611,2303.9,2302.5,13.81133057]
[1770098891082,1.99493646,2304.3,2302.8,12.72555424]
[1770098891247,1.99493646,2304.3,2302.7,0.01304008]
[1770098891747,14.49116148,2304.3,2302.6,1.84829155]
[1770098891976,14.49116148,2304.3,2302.7,1.08568202]
[1770098892282,12.49622502,2304.1,2302.7,1.08568202]
[1770098892792,12.48318494,2304.1,2302.7,1.08568202]
[1770098893591,0.0011,2303.5,2302.7,1.08568202]
[1770098894682,0.0011,2303.5,2302.6,6.19101965]
[1770098894878,0.0011,2303.5,2302.7,1.08568202]
[1770098895092,0.0011,2303.5,2302.7,2.247625]
[1770098895398,1.51677548,2303.2,2302.7,2.11723449]
[1770098896166,1.51677548,2303.2,2302.7,2.07377058]
[1770098896365,0.0011,2303.5,2302.7,2.07377058]
[1770098896980,0.0011,2303.5,2302.7,0.9118276]
[1770098898183,0.0011,2303.5,2302.7,13.65042192]
[1770098899800,3.03397126,2304.2,2303.0,12.73859432]
[1770098900103,3.03397126,2304.3,2303.0,12.73859432]
[1770098900293,3.03397126,2304.3,2303.1,1.27516344]
[1770098900488,3.03397126,2304.6,2303.4,12.17585146]
[1770098900697,3.03397126,2304.7,2303.4,12.16281138]
[1770098900884,3.03397126,2304.6,2303.2,1.08544633]
[1770098901204,13.66705067,2304.7,2303.2,1.08544633]
[1770098901374,14.76211521,2304.6,2303.3,0.67154352]
[1770098902473,14.76211521,2304.6,2303.4,1.08535208]
[1770098902678,15.84690577,2304.6,2303.4,1.08535208]
[1770098903204,0.91279923,2304.5,2303.4,1.08535208]
[1770098903405,0.91279923,2304.4,2303.4,13.24816346]
[1770098903707,0.91279923,2304.3,2303.5,1.82741554]
[1770098903875,0.91279923,2304.2,2303.5,1.82741554]
[1770098904080,0.38052884,2304.8,2303.5,1.82741554]
[1770098904500,0.38052884,2304.8,2303.6,1.08525785]
[1770098904707,0.38052884,2304.8,2303.7,1.27161873]
[1770098904911,13.66690947,2305.0,2303.7,1.27161873]
[1770098906008,13.66690947,2305.0,2303.6,1.08525785]
[1770098906590,13.66690947,2305.0,2303.5,4.34103142]
[1770098907373,13.66690947,2305.0,2303.4,4.34103142]
[1770098907374,12.58230683,2304.7,2303.4,4.34103142]
[1770098907604,13.66690947,2305.0,2303.4,4.34103142]
[1770098907880,2.27073826,2304.9,2303.5,0.61109671]
[1770098908081,2.27954034,2304.8,2303.5,0.61109671]
[1770098908811,0.0011,2304.4,2303.6,1.08525785]
[1770098908997,0.0011,2304.4,2303.7,0.01304008]
[1770098910279,0.0011,2304.4,2303.6,13.24806923]
[1770098910475,0.0011,2304.4,2303.6,15.49871932]
[1770098910706,13.66747508,2303.8,2302.0,12.16281138]
[1770098910905,0.04345517,2303.6,2302.3,12.17585146]
[1770098911121,0.9111,2304.4,2302.5,12.16281138]
[1770098911122,2.28064034,2304.4,2302.5,12.16281138]
[1770098911308,2.28064034,2304.4,2302.9,12.16281138]
[1770098911309,0.0011,2304.4,2302.9,12.16281138]
[1770098913104,0.0011,2304.4,2303.1,12.16281138]
[1770098913336,0.0011,2304.4,2303.2,13.07281138]
[1770098914508,15.94628791,2305.4,2303.3,12.16281138]
[1770098914704,13.66673175,2305.4,2303.8,12.16281138]
[1770098914909,1.36667318,2305.3,2303.9,1.21758515]
[1770098915111,13.66681142,2305.2,2304.0,1.08506944]
[1770098916323,0.91134117,2305.1,2304.0,1.08506944]
[1770098916500,0.91134117,2305.0,2304.0,1.08506944]
[1770098916701,0.91134117,2304.9,2303.9,1.99508882]
[1770098916926,0.91134117,2304.8,2303.9,1.99508882]
[1770098917126,0.91134117,2304.7,2303.9,1.99508882]
[1770098917324,1.08464575,2304.9,2303.9,1.99508882]
[1770098917636,2.71208597,2304.8,2303.9,1.99508882]
[1770098917926,13.66691463,2305.0,2303.9,1.99508882]
[1770098918127,0.91132379,2304.9,2303.9,1.99508882]
[1770098918428,1.08458342,2305.1,2303.9,1.99508882]
[1770098918640,0.91142208,2305.0,2303.9,1.99508882]
[1770098918833,0.91142208,2304.9,2303.9,1.99508882]
[1770098919132,1.0846399,2305.0,2303.9,1.99508882]
[1770098919333,0.91143377,2304.9,2303.9,1.99508882]
[1770098919505,1.0846399,2305.0,2303.9,1.99508882]
[1770098919832,0.91143448,2304.9,2303.9,1.99508882]
[1770098920035,13.66689256,2305.1,2303.9,1.99508882]
[1770098920218,2.71193518,2305.0,2303.9,1.99508882]
[1770098920417,0.91143737,2304.9,2303.9,1.99508882]
[1770098920729,13.49370346,2304.8,2304.0,0.91]
[1770098920930,0.91139663,2304.7,2304.0,0.86655751]
[1770098921127,13.6670368,2304.8,2304.1,1.08502235]
[1770098921323,2.71191371,2304.7,2304.1,1.08502235]
[1770098921525,12.58230683,2305.2,2304.1,1.08502235]
[1770098921732,12.58230683,2305.2,2304.0,5.20681424]
[1770098921733,12.58230683,2305.0,2304.2,0.91]
[1770098921911,0.91154943,2304.9,2304.2,0.91]
[1770098922113,0.91154943,2304.8,2304.2,0.91]
[1770098922309,2.27947663,2305.6,2304.9,0.01304008]
[1770098922527,3.04063519,2305.9,2304.9,0.91154943]
[1770098922528,0.00427278,2305.9,2304.9,0.91154943]
[1770098922843,12.58657961,2305.9,2305.0,0.91]
[1770098923150,12.58657961,2305.9,2305.1,1.08455164]
[1770098923151,1.36707431,2305.8,2305.1,1.08455164]
[1770098923367,13.94938114,2305.8,2305.0,1.9945573]
[1770098923659,0.0011,2305.1,2305.0,1.98930693]
[1770098924660,0.0011,2305.3,2305.0,1.98930693]
[1770098924967,1.39536539,2305.7,2305.0,1.98930693]
[1770098925117,13.97767222,2305.7,2305.0,1.98930693]
[1770098926125,0.00427278,2305.9,2305.0,1.98930693]
[1770098926328,13.67075842,2305.9,2305.0,1.98930693]
[1770098926513,13.67077192,2305.9,2305.0,1.98930693]
[1770098926718,1.80072981,2305.8,2305.0,1.98930693]
[1770098927483,0.00427278,2305.9,2305.0,1.98930693]
[1770098931071,0.00427278,2305.9,2305.0,1.75332431]
[1770098932268,0.00427278,2305.9,2305.0,14.27801345]
[1770098932477,0.00427278,2305.9,2305.0,1.75332431]
[1770098933287,0.00427278,2305.9,2305.0,14.27801345]
[1770098933438,0.0011,2306.3,2305.8,0.01304008]
[1770098933641,0.0011,2306.3,2305.9,0.909]
[1770098934667,0.0011,2306.3,2306.0,0.01304008]
[1770098935246,1.0846061,2307.4,2306.3,1.08398733]
[1770098935574,0.90909487,2307.3,2306.3,1.09702741]
[1770098935759,1.34686877,2307.3,2306.3,1.09702741]
[1770098935952,1.34686877,2307.3,2306.3,1.091252]
[1770098936451,0.0011,2307.4,2306.4,0.01304008]
[1770098937142,0.0011,2307.4,2306.2,1.09705181]
[1770098937143,12.55959286,2307.4,2306.2,1.09705181]
[1770098937341,12.55849286,2307.2,2306.2,1.09705181]
[1770098937648,13.64210432,2307.1,2306.2,1.08401173]
[1770098938177,1.08361146,2307.1,2306.2,1.08401173]
[1770098938343,0.54180573,2307.0,2306.2,1.08401173]
[1770098938683,0.54180573,2307.0,2306.2,1.08403398]
[1770098939249,0.54180573,2307.0,2306.2,1.09707406]
[1770098939654,14.1839596,2307.0,2306.1,1.08408134]
[1770098940441,0.54180573,2307.0,2306.3,0.01304008]
[1770098940969,14.18396259,2307.0,2305.9,0.909]
[1770098941181,13.64215686,2307.0,2306.0,1.08411869]
[1770098941376,4.33573372,2307.3,2306.0,1.09715877]
[1770098941377,0.0011,2307.3,2306.0,1.09715877]
[1770098941551,1.99064985,2307.2,2306.3,1.08398733]
[1770098941746,1.99064985,2307.2,2305.9,0.92204008]
[1770098941747,2.00906934,2305.5,2302.6,3.86812502]
[1770098942097,0.2,2303.0,2302.2,12.52468914]
[1770098942245,0.22675614,2303.2,2302.4,12.52468914]
[1770098942449,1.13183648,2302.9,2302.5,4.12075542]
[1770098942649,2.03628844,2302.8,2301.9,12.52468914]
[1770098942883,3.60192271,2302.1,2302.0,2.32131559]
[1770098943083,1.13183648,2302.5,2301.9,12.52468914]
[1770098943380,1.50911531,2302.7,2301.9,13.61073498]
[1770098943381,0.90418017,2302.4,2301.9,13.61073498]
[1770098943586,1.13183648,2302.8,2301.9,13.61073498]
[1770098943897,0.90242803,2302.7,2301.9,13.61073498]
[1770098944055,0.90242803,2302.6,2301.9,13.61073498]
[1770098944247,0.90242803,2302.5,2301.9,13.61073498]
[1770098944560,2.21744804,2302.9,2301.9,13.61073498]
[1770098944753,0.90103939,2302.8,2301.9,13.61073498]
[1770098945093,0.90103939,2302.7,2302.0,14.63519597]
[1770098945266,1.13183648,2303.0,2302.0,12.52468914]
[1770098945470,0.89984204,2302.9,2302.0,12.52468914]
[1770098945676,1.35859262,2303.2,2302.1,13.61065412]
[1770098945880,1.35859262,2303.2,2302.2,14.32014055]
[1770098945881,0.89993077,2303.1,2302.2,14.32014055]
[1770098946078,0.89993077,2303.0,2302.2,14.32014055]
[1770098946390,2.44406719,2303.2,2302.2,12.52468914]
[1770098946551,0.89891703,2303.1,2302.2,12.52468914]
[1770098946750,0.89891703,2303.0,2302.2,12.52468914]
[1770098946985,0.89890437,2302.9,2302.2,12.52468914]
[1770098947289,1.31223071,2303.2,2302.2,12.52468914]
[1770098947464,1.59921419,2303.1,2302.2,12.52468914]
[1770098947657,1.08558773,2302.9,2302.2,12.52468914]
[1770098947858,1.0855718,2303.0,2302.2,12.52468914]
[1770098948179,1.78668796,2303.1,2302.2,13.61059757]
[1770098948385,1.08547171,2303.2,2302.2,13.61059757]
[1770098948573,0.89721659,2303.1,2302.2,13.61059757]
[1770098948774,1.08547171,2303.2,2302.2,13.61059757]
[1770098949083,0.89721785,2303.1,2302.2,13.61159757]
[1770098949254,1.08545105,2303.2,2302.2,13.61159757]
[1770098949454,0.54270553,2303.1,2302.2,13.61159757]
[1770098949655,5.47362182,2303.3,2302.2,13.56159598]
[1770098949864,0.89641326,2303.2,2302.2,13.56159598]
[1770098951090,1.0853992,2303.3,2302.2,13.56159598]
[1770098951562,1.08530497,2303.5,2302.2,13.56159598]
[1770098951765,1.98081743,2303.4,2302.2,13.56159598]
[1770098951975,1.39662495,2303.4,2302.3,12.52468914]
[1770098952579,1.39662495,2303.4,2302.3,12.47468914]
[1770098953863,1.39662495,2303.4,2302.5,12.52468914]
[1770098954187,0.31126539,2303.4,2302.6,0.91]
[1770098954361,1.0853488,2303.5,2302.6,0.91]
[1770098954556,1.0823488,2303.5,2302.6,0.91]
[1770098955372,1.13183648,2304.1,2302.6,13.43468914]
[1770098955572,1.08491374,2304.4,2302.6,13.43468914]
[1770098955864,1.98069973,2304.3,2302.8,12.52468914]
[1770098956069,1.71696532,2304.3,2303.0,12.52468914]
[1770098956874,1.08486888,2304.5,2303.0,12.52468914]
[1770098957606,1.08486888,2304.5,2303.0,12.39432534]
[1770098957997,1.08486888,2304.5,2303.2,12.52468914]
[1770098958194,1.09117299,2304.6,2303.2,12.52468914]
[1770098959406,0.00635252,2304.6,2303.2,12.53772922]
[1770098959578,1.09115834,2304.6,2303.4,12.52468914]
[1770098959892,1.09115834,2304.6,2303.5,13.43468914]
[1770098960105,1.09115834,2304.6,2303.6,13.60994699]
[1770098960872,1.09115834,2304.6,2303.6,12.52468914]
[1770098961202,0.54301866,2304.5,2303.6,12.52468914]
[1770098962287,1.08488109,2304.4,2303.6,13.60991484]
[1770098963390,1.62788662,2304.5,2303.6,13.60991484]
[1770098963577,0.0011,2304.4,2303.6,13.60991484]
[1770098963974,0.00745252,2304.6,2303.6,13.60991484]
[1770098964284,0.00745252,2304.6,2303.8,12.03834341]
[1770098964607,1.09224937,2304.6,2303.9,1.08511654]
[1770098964804,1.09224937,2304.6,2303.8,13.12347035]
[1770098965979,1.09225498,2304.6,2303.8,13.12347035]
[1770098966379,0.90185458,2304.5,2303.8,13.12347035]
[1770098966574,0.00745252,2304.6,2303.8,13.12347035]
[1770098966781,0.90213149,2304.5,2303.9,12.03834341]
[1770098966979,0.00745252,2304.6,2303.9,12.03834341]
[1770098967285,0.90217764,2304.5,2303.9,12.03834341]
[1770098967481,0.90217764,2304.4,2303.9,12.03834341]
[1770098967688,0.00745252,2304.6,2303.9,11.95144793]
[1770098967883,0.90373584,2304.5,2303.9,11.95144793]
[1770098968089,0.90373584,2304.4,2303.9,11.95144793]
[1770098968304,0.90373584,2304.3,2303.9,11.95144793]
[1770098968603,0.90373584,2304.2,2303.9,11.95144793]
[1770098968777,1.13183648,2304.5,2304.0,13.12341285]
[1770098968977,0.90535682,2304.4,2304.0,13.12341285]
[1770098969179,0.90717345,2304.3,2304.0,13.12341285]
[1770098969377,0.90717345,2304.2,2304.1,0.91]
[1770098970182,0.78110263,2304.2,2304.1,0.91]
[1770098970385,0.78110263,2304.2,2303.6,13.00559543]
[1770098970598,1.13183648,2304.3,2303.7,1.9952065]
[1770098970783,2.48086065,2304.3,2303.7,0.91]
[1770098971610,1.13183648,2304.1,2303.7,0.91]
[1770098971793,1.13183648,2304.0,2303.7,0.91]
[1770098972507,1.13183648,2304.0,2303.7,1.99520134]
[1770098972917,1.13183648,2303.9,2303.8,0.91]
[1770098974312,1.50911531,2304.0,2303.8,0.91]
[1770098974513,1.13707814,2303.9,2303.8,0.91]
[1770098974714,1.50911531,2304.0,2303.8,0.91]
[1770098975989,1.13735919,2303.9,2303.8,0.91]
[1770098976315,1.13734672,2303.9,2303.8,1.99516364]
[1770098976520,1.13734672,2303.9,2303.8,0.91]
[1770098977027,1.50911531,2304.3,2303.8,14.03350705]
[1770098977206,3.03636241,2304.7,2303.9,12.03834341]
[1770098977207,1.08476177,2304.7,2303.9,12.03834341]
[1770098977416,2.26130819,2304.8,2303.9,12.03834341]
[1770098977727,2.26130819,2304.8,2303.9,11.57590269]
[1770098978290,1.08469284,2304.8,2303.9,11.57590269]
[1770098978515,0.0011,2304.6,2303.9,11.56955017]
[1770098978991,0.0011,2304.6,2304.1,12.03834341]
[1770098979410,0.0011,2304.6,2304.1,13.78471247]
[1770098979628,0.0011,2304.6,2304.1,12.03834341]
[1770098981391,2.26130819,2305.0,2304.3,12.03834341]
[1770098981603,2.26130819,2305.1,2304.5,12.03834341]
[1770098982288,3.83403057,2305.3,2304.5,12.03834341]
[1770098982289,0.91231755,2305.0,2304.5,12.03834341]
[1770098982503,0.91231755,2304.9,2304.5,12.03834341]
[1770098982837,0.91231755,2304.8,2304.5,12.03834341]
[1770098983017,0.91231755,2304.7,2304.5,12.03834341]
[1770098983217,2.26130819,2305.2,2304.5,12.03834341]
[1770098983436,3.30460761,2305.2,2304.6,1.08478694]
[1770098983821,2.26130819,2305.2,2304.6,1.08478694]
[1770098984221,4.44057805,2305.7,2304.6,1.08478694]
[1770098984222,1.08540896,2305.7,2304.7,12.03834341]
[1770098984514,1.08542531,2305.6,2304.7,12.03834341]
[1770098984715,0.0011,2305.6,2304.7,12.03834341]
[1770098985256,1.08541647,2305.6,2304.7,12.03834341]
[1770098985539,0.0011,2305.6,2304.8,13.12303622]
[1770098986838,0.0011,2305.7,2304.9,12.03834341]
[1770098987040,0.0011,2305.9,2305.1,12.03834341]
[1770098987216,1.08375238,2306.8,2305.1,12.03834341]
[1770098987538,3.79224831,2307.0,2305.3,12.05138349]
[1770098987539,4.33500953,2307.0,2305.3,12.05138349]
[1770098987719,1.08830317,2306.9,2305.5,12.03834341]
[1770098987917,1.08830317,2306.9,2305.6,12.94734341]
[1770098989130,4.33500953,2307.0,2305.6,12.94734341]
[1770098989346,4.33500953,2307.0,2305.8,12.03834341]
[1770098989642,1.08365843,2307.1,2305.8,12.03134818]
[1770098989942,6.55501743,2307.1,2305.7,1.08426941]
[1770098990131,6.55501743,2307.1,2305.7,13.12261282]
[1770098990330,1.11961829,2307.0,2305.7,15.39449364]
[1770098990552,1.11961829,2307.0,2305.7,15.40753372]
[1770098990760,1.11961829,2307.0,2305.8,12.88628044]
[1770098991214,0.0011,2306.9,2305.7,1.08426941]
[1770098991413,6.5561644,2306.9,2305.6,0.909]
[1770098991625,1.20106043,2306.8,2305.6,1.99331499]
[1770098992449,1.20106043,2306.8,2305.8,0.01304008]
[1770098992618,1.20106043,2306.8,2305.7,12.6351357]
[1770098992818,1.0848054,2306.9,2305.7,12.6351357]
[1770098994046,0.0011,2306.9,2305.8,1.08422239]
[1770098994417,0.0011,2306.9,2305.8,13.70631801]
[1770098994616,0.0011,2306.9,2305.8,13.71935809]
[1770098995970,0.0011,2306.9,2306.0,13.70622398]
[1770098996261,0.0011,2306.9,2306.1,1.80557775]
[1770098996427,0.0011,2306.9,2306.0,13.70622398]
[1770098997772,0.0011,2306.9,2305.9,1.08414871]
[1770098998267,0.0011,2306.9,2306.0,12.62209562]
[1770098998769,0.0011,2306.9,2305.8,1.08422239]
[1770099000549,0.0011,2306.9,2305.8,1.08421898]
[1770099000750,5.522459,2306.9,2305.6,1.99331237]
[1770099001065,0.56378991,2306.8,2305.6,0.909]
[1770099001263,0.56378991,2306.8,2305.7,1.08426675]
[1770099001858,0.56378991,2306.8,2305.6,0.909]
[1770099002468,1.08379936,2306.7,2305.7,1.07657198]
[1770099002673,1.08379936,2306.7,2305.6,1.99328605]
[1770099002873,0.59827867,2306.6,2305.6,1.99328605]
[1770099003074,6.11963767,2306.6,2305.6,0.909]
[1770099003586,4.0,2306.1,2305.6,0.909]
[1770099004144,4.0,2306.1,2305.1,1.08451757]
[1770099004484,4.0,2306.1,2304.5,0.01304008]
[1770099004485,4.0,2306.1,2305.3,12.62209562]
[1770099004698,5.48409223,2306.1,2305.3,12.57209562]
[1770099004981,5.48409223,2306.1,2305.3,13.65654296]
[1770099005153,5.48409223,2306.1,2305.3,13.65654091]
[1770099005359,5.48409223,2306.1,2305.9,0.001]
[1770099005563,5.48409223,2306.1,2305.6,0.001]
[1770099005760,0.98204176,2306.0,2305.6,0.001]
[1770099006879,1.08417537,2305.9,2305.6,0.001]
[1770099007078,5.08417537,2305.9,2305.6,0.001]
[1770099007679,4.0,2305.9,2305.6,0.001]
[1770099008488,2.06620707,2306.0,2305.6,0.001]
[1770099010084,0.64025433,2305.9,2305.6,0.001]
[1770099011084,1.08410912,2306.1,2305.6,0.001]
[1770099011798,1.08394033,2306.4,2305.6,0.001]
[1770099014889,3.8,2305.8,2305.6,0.001]
[1770099015092,3.8084526,2305.8,2305.6,0.001]
[1770099015980,0.0084526,2305.8,2305.6,0.001]
[1770099017003,1.09267686,2305.8,2305.2,0.909]
[1770099017196,0.0084526,2305.8,2305.4,12.62209562]
[1770099017593,1.09267513,2305.8,2305.4,12.62209562]
[1770099017904,1.09268104,2305.8,2305.4,12.62209562]
[1770099018611,1.09268104,2305.8,2305.5,0.001]
[1770099018811,0.0084526,2305.8,2305.5,0.001]
[1770099020112,0.0084526,2305.8,2305.5,12.62309562]
[1770099020492,1.09267624,2305.8,2305.5,12.62309562]
[1770099021204,0.0084526,2305.8,2305.5,12.62309562]
[1770099022120,0.0084526,2305.8,2305.5,13.70744793]
[1770099022421,3.5095526,2305.9,2305.5,13.70744793]
[1770099022794,3.5095526,2305.9,2305.5,12.62309562]
[1770099023710,1.08397093,2306.4,2305.6,12.9076908]
[1770099024513,4.82911436,2306.5,2305.6,12.9076908]
[1770099024514,1.57730739,2306.5,2305.6,12.9076908]
[1770099024721,1.08392111,2306.5,2305.6,12.9076908]
[1770099025529,1.08392111,2306.5,2305.6,13.99200234]
[1770099026132,1.08392111,2306.5,2305.6,12.9076908]
[1770099026707,1.08392111,2306.5,2305.6,13.99199693]
[1770099026895,1.08392111,2306.5,2305.6,13.9920028]
[1770099027097,1.6447706,2306.5,2305.6,13.9920028]
[1770099027937,9.2029878,2306.5,2305.5,0.001]
[1770099028246,9.2029878,2306.5,2305.6,0.909]
[1770099028445,8.11906669,2306.3,2305.6,0.66625691]
[1770099028750,3.0,2305.8,2305.5,0.001]
[1770099029444,1.08426941,2305.7,2305.5,0.001]
[1770099029848,1.92639671,2305.7,2305.3,0.78416729]